fUSD/lending_fUSD_20250117
["ID","MTS","AMOUNT","RATE_DAILY","PERIOD"]
[349368541,1737138643390,-500.0,0.00023199,2]
[349368543,1737138643399,-500.0,0.00023199,2]
[349368546,1737138643409,-500.0,0.00023199,2]
[349368547,1737138643418,-500.0,0.00023199,2]
[349368549,1737138643427,-500.0,0.00023199,2]
[349368551,1737138643437,-500.0,0.00023199,2]
[349368553,1737138643446,-500.0,0.00023199,2]
[349368555,1737138643456,-500.0,0.00023199,2]
[349368557,1737138643465,-500.0,0.00023199,2]
[349368559,1737138643475,-500.0,0.00023199,2]
[349368561,1737138643484,-500.0,0.00023199,2]
[349368564,1737138643494,-500.0,0.00023199,2]
[349368566,1737138643505,-500.0,0.00023199,2]
[349368568,1737138643515,-500.0,0.00023199,2]
[349368570,1737138643524,-500.0,0.00023199,2]
[349368572,1737138643535,-500.0,0.00023199,2]
[349368574,1737138643545,-500.0,0.00023199,2]
[349368576,1737138643555,-319.52,0.00023199,2]
[349368578,1737138643565,-500.0,0.00023199,2]
[349368580,1737138643575,-308.28487769,0.00023199,2]
[349368583,1737138643584,-500.0,0.00023199,2]
[349368585,1737138643594,-500.0,0.00023199,2]
[349368587,1737138643603,-462.42,0.00023199,2]
[349368589,1737138643613,-500.0,0.00023199,2]
[349368591,1737138643621,-500.0,0.00023199,2]
[349368593,1737138643631,-500.0,0.00023199,2]
[349368595,1737138643640,-500.0,0.00023199,2]
[349368597,1737138643650,-500.0,0.00023199,2]
[349368599,1737138643659,-500.0,0.00023199,2]
[349368601,1737138643669,-500.0,0.00023199,2]
[349368603,1737138643679,-500.0,0.00023199,2]
[349368605,1737138643689,-500.0,0.00023199,2]
[349368607,1737138643698,-500.0,0.00023199,2]
[349368609,1737138643707,-500.0,0.00023199,2]
[349368611,1737138643717,-500.0,0.00023199,2]
[349368613,1737138643726,-243.16,0.00023199,2]
[349368615,1737138643735,-500.0,0.00023199,2]
[349368617,1737138643745,-500.0,0.00023199,2]
[349368619,1737138643757,-500.0,0.00023199,2]
[349368621,1737138643767,-500.0,0.00023199,2]
[349368623,1737138643778,-500.0,0.00023199,2]
[349368625,1737138643787,-500.0,0.00023199,2]
[349368627,1737138643797,-500.0,0.00023199,2]
[349368629,1737138643807,-500.0,0.00023199,2]
[349368631,1737138643816,-500.0,0.00023199,2]
[349368633,1737138643827,-500.0,0.00023199,2]
[349368634,1737138643838,-438.75,0.00023199,2]
[349368635,1737138643848,-500.0,0.00023199,2]
[349368636,1737138643858,-500.0,0.00023199,2]
[349368637,1737138643868,-500.0,0.00023199,2]
[349368638,1737138643878,-500.0,0.00023199,2]
[349368639,1737138643889,-500.0,0.00023199,2]
[349368640,1737138643898,-304.72,0.00023199,2]
[349368641,1737138643907,-500.0,0.00023199,2]
[349368642,1737138643918,-418.10258728,0.00023199,2]
[349368644,1737138643929,-459.04,0.00023199,2]
[349368646,1737138643939,-500.0,0.00023199,2]
[349368648,1737138643949,-500.0,0.00023199,2]
[349368650,1737138643959,-500.0,0.00023199,2]
[349368652,1737138643969,-525.67,0.00023199,2]
[349368654,1737138643978,-500.0,0.00023199,2]
[349368656,1737138643989,-511.44,0.00023199,2]
[349368658,1737138644000,-500.0,0.00023199,2]
[349368660,1737138644009,-500.0,0.00023199,2]
[349368663,1737138644019,-500.0,0.00023199,2]
[349368665,1737138644029,-500.0,0.00023199,2]
[349368667,1737138644039,-500.0,0.00023199,2]
[349368669,1737138644048,-500.0,0.00023199,2]
[349368670,1737138644058,-500.0,0.00023199,2]
[349368671,1737138644068,-500.0,0.00023199,2]
[349368672,1737138644078,-500.0,0.00023199,2]
[349368673,1737138644087,-500.0,0.00023199,2]
[349368674,1737138644097,-296.7322571,0.00023199,2]
[349368675,1737138644107,-500.0,0.00023199,2]
[349368676,1737138644116,-449.26,0.00023199,2]
[349368677,1737138644125,-500.0,0.00023199,2]
[349368678,1737138644135,-454.82,0.00023199,2]
[349368679,1737138644144,-644.52,0.00023199,2]
[349368680,1737138644154,-500.0,0.00023199,2]
[349368681,1737138644163,-500.0,0.00023199,2]
[349368682,1737138644173,-500.0,0.00023199,2]
[349368683,1737138644183,-500.0,0.00023199,2]
[349368684,1737138644192,-399.88,0.00023199,2]
[349368685,1737138644202,-500.0,0.00023199,2]
[349368686,1737138644212,-500.0,0.00023199,2]
[349368687,1737138644221,-500.0,0.00023199,2]
[349368688,1737138644231,-500.0,0.00023199,2]
[349368689,1737138644242,-535.77,0.00023199,2]
[349368690,1737138644253,-500.0,0.00023199,2]
[349368691,1737138644263,-156.83,0.00023199,2]
[349368692,1737138644272,-500.0,0.00023199,2]
[349368693,1737138644282,-500.0,0.00023199,2]
[349368694,1737138644291,-500.0,0.00023199,2]
[349368695,1737138644301,-500.0,0.00023199,2]
[349368696,1737138644311,-500.0,0.00023199,2]
[349368697,1737138644320,-500.0,0.00023199,2]
[349368698,1737138644330,-500.0,0.00023199,2]
[349368699,1737138644340,-500.0,0.00023199,2]
[349368700,1737138644350,-500.0,0.00023199,2]
[349368701,1737138644359,-500.0,0.00023199,2]
[349368702,1737138644369,-500.0,0.00023199,2]
[349368703,1737138644379,-500.0,0.00023199,2]
[349368704,1737138644389,-500.0,0.00023199,2]
[349368705,1737138644398,-500.0,0.00023199,2]
[349368706,1737138644407,-500.0,0.00023199,2]
[349368707,1737138644417,-500.0,0.00023199,2]
[349368708,1737138644427,-500.0,0.00023199,2]
[349368709,1737138644437,-428.58,0.00023199,2]
[349368710,1737138644446,-500.0,0.00023199,2]
[349368711,1737138644455,-500.0,0.00023199,2]
[349368712,1737138644465,-500.0,0.00023199,2]
[349368713,1737138644474,-500.0,0.00023199,2]
[349368714,1737138644483,-500.0,0.00023199,2]
[349368715,1737138644492,-500.0,0.00023199,2]
[349368716,1737138644503,-500.0,0.00023199,2]
[349368717,1737138644512,-500.0,0.00023199,2]
[349368718,1737138644522,-633.98,0.00023199,2]
[349368719,1737138644531,-500.0,0.00023199,2]
[349368720,1737138644541,-500.0,0.00023199,2]
[349368721,1737138644551,-543.28,0.00023199,2]
[349368722,1737138644562,-500.0,0.00023199,2]
[349368723,1737138644571,-349.86,0.00023199,2]
[349368724,1737138644581,-500.0,0.00023199,2]
[349368725,1737138644590,-500.0,0.00023199,2]
[349368726,1737138644600,-500.0,0.00023199,2]
[349368727,1737138644610,-500.0,0.00023199,2]
[349368728,1737138644620,-500.0,0.00023199,2]
[349368729,1737138644630,-500.0,0.00023199,2]
[349368730,1737138644640,-500.0,0.00023199,2]
[349368731,1737138644650,-500.0,0.00023199,2]
[349368732,1737138644660,-500.0,0.00023199,2]
[349368733,1737138644670,-500.0,0.00023199,2]
[349368734,1737138644680,-500.0,0.00023199,2]
[349368735,1737138644690,-500.0,0.00023199,2]
[349368736,1737138644699,-500.0,0.00023199,2]
[349368737,1737138644708,-500.0,0.00023199,2]
[349368738,1737138644716,-500.0,0.00023199,2]
[349368739,1737138644725,-500.0,0.00023199,2]
[349368740,1737138644734,-500.0,0.00023199,2]
[349368741,1737138644744,-500.0,0.00023199,2]
[349368742,1737138644756,-203.76,0.00023199,2]
[349368743,1737138644765,-500.0,0.00023199,2]
[349368744,1737138644775,-500.0,0.00023199,2]
[349368745,1737138644785,-500.0,0.00023199,2]
[349368746,1737138644796,-500.0,0.00023199,2]
[349368747,1737138644806,-500.0,0.00023199,2]
[349368748,1737138644816,-500.0,0.00023199,2]
[349368749,1737138644827,-500.0,0.00023199,2]
[349368750,1737138644841,-500.0,0.00023199,2]
[349368751,1737138644851,-500.0,0.00023199,2]
[349368752,1737138644862,-500.0,0.00023199,2]
[349368753,1737138644872,-500.0,0.00023199,2]
[349368754,1737138644882,-500.0,0.00023199,2]
[349368755,1737138644892,-239.44,0.00023199,2]
[349368756,1737138644901,-500.0,0.00023199,2]
[349368757,1737138644911,-273.14,0.00023199,2]
[349368758,1737138644921,-500.0,0.00023199,2]
[349368759,1737138644931,-500.0,0.00023199,2]
[349368760,1737138644941,-500.0,0.00023199,2]
[349368761,1737138644950,-500.0,0.00023199,2]
[349368762,1737138644960,-495.75,0.00023199,2]
[349368763,1737138644970,-500.0,0.00023199,2]
[349368764,1737138644980,-500.0,0.00023199,2]
[349368765,1737138644991,-544.72,0.00023199,2]
[349368766,1737138645003,-387.24,0.00023199,2]
[349368767,1737138645012,-500.0,0.00023199,2]
[349368768,1737138645022,-500.0,0.00023199,2]
[349368769,1737138645033,-500.0,0.00023199,2]
[349368770,1737138645043,-500.0,0.00023199,2]
[349368771,1737138645055,-500.0,0.00023199,2]
[349368772,1737138645065,-500.0,0.00023199,2]
[349368773,1737138645075,-500.0,0.00023199,2]
[349368774,1737138645085,-500.0,0.00023199,2]
[349368775,1737138645096,-500.0,0.00023199,2]
[349368776,1737138645106,-500.0,0.00023199,2]
[349368777,1737138645115,-500.0,0.00023199,2]
[349368778,1737138645125,-500.0,0.00023199,2]
[349368779,1737138645135,-500.0,0.00023199,2]
[349368780,1737138645145,-500.0,0.00023199,2]
[349368781,1737138645155,-500.0,0.00023199,2]
[349368782,1737138645165,-500.0,0.00023199,2]
[349368783,1737138645174,-500.0,0.00023199,2]
[349368784,1737138645183,-369.46,0.00023199,2]
[349368785,1737138645193,-208.97,0.00023199,2]
[349368786,1737138645203,-1637052.71789946,0.000232,2]
[349368787,1737138645212,-12458.15344362,0.000232,2]
[349368788,1737138645221,-260.549,0.000232,2]
[349368789,1737138645231,-212.66,0.000232,2]
[349368790,1737138645241,-635.0,0.000232,2]
[349368791,1737138645252,-569.29,0.000232,2]
[349368792,1737138645262,-1862.0,0.000232,2]
[349368793,1737138645271,-1260.0,0.000232,2]
[349368794,1737138645280,-2945.0,0.000232,2]
[349368795,1737138645291,-907.0,0.000232,2]
[349368796,1737138645301,-820.0,0.000232,2]
[349368797,1737138645310,-3981.0,0.000232,2]
[349368798,1737138645320,-537.0,0.000232,2]
[349368799,1737138645329,-150.0,0.000232,2]
[349368800,1737138645339,-1105.0,0.000232,2]
[349368801,1737138645349,-151.359,0.000232,2]
[349368802,1737138645359,-150.0,0.000232,2]
[349368803,1737138645369,-713.738,0.000232,2]
[349368804,1737138645379,-1288.759,0.000232,2]
[349368805,1737138645389,-3899.0,0.000232,2]
[349368806,1737138645398,-1550346.39724204,0.000232,2]
[349368809,1737138645732,-500.0,0.00023098,2]
[349368810,1737138645741,-500.0,0.00023098,2]
[349368811,1737138645751,-544.01,0.00023098,2]
[349368813,1737138645761,-500.0,0.00023098,2]
[349368815,1737138645771,-500.0,0.00023099,2]
[349368817,1737138645782,-577.15,0.00023099,2]
[349368818,1737138645791,-500.0,0.00023176,2]
[349368819,1737138645801,-333.32,0.00023176,2]
[349368820,1737138645811,-500.0,0.00023196,2]
[349368821,1737138645821,-500.0,0.00023197,2]
[349368822,1737138645832,-500.0,0.00023198,2]
[349368823,1737138645845,-500.0,0.00023199,2]
[349368824,1737138645855,-500.0,0.00023199,2]
[349368825,1737138645865,-500.0,0.00023199,2]
[349368826,1737138645874,-500.0,0.00023199,2]
[349368827,1737138645884,-500.0,0.00023199,2]
[349368828,1737138645893,-457.79,0.00023199,2]
[349368829,1737138645903,-166.66,0.00023199,2]
[349368830,1737138645912,-2017.115,0.000232,2]
[349368831,1737138645922,-666332.17082926,0.000232,2]
[349368832,1737138646043,-22265.75000005,0.000232,2]
[349368833,1737138646055,-102821.4436382,0.000232,2]
[349368834,1737138647458,-500.0,0.00023098,2]
[349368835,1737138647468,-0.43230911,0.00023176,2]
[349368836,1737138647636,-500.0,0.00023099,2]
[349368837,1737138647646,-499.56769089,0.00023176,2]
[349368838,1737138647656,-291.6,0.00023199,2]
[349368839,1737138647665,-802.61150911,0.000232,2]
[349368840,1737138647681,-1359.09240663,0.000232,2]
[349368843,1737138717870,199.16,0.00010137,2]
[349368844,1737138750758,150.0,0.0002386,120]
[349368846,1737138811028,150.0,0.00023361,120]
[349368862,1737139413247,-219.8,0.00016712,2]
[349368863,1737139413280,-199.16,0.00016813,2]
[349368866,1737139564938,157.18,0.00010137,2]
[349368869,1737139630102,-927.56,0.00019993,2]
[349368870,1737139630128,-740.67812211,0.0002,2]
[349368871,1737139636124,-2223.75297956,0.0002,2]
[349368872,1737139644095,-2035.56889833,0.0002,2]
[349368873,1737139644119,-477.278726,0.00021572,2]
[349368874,1737139644146,-570.68,0.00021681,2]
[349368875,1737139644172,-150.0,0.00021875,2]
[349368876,1737139644198,-250.0,0.00021887,2]
[349368877,1737139644223,-374.08,0.00021958,2]
[349368878,1737139644248,-151.0,0.00022,2]
[349368879,1737139644271,-150.0,0.00022027,2]
[349368880,1737139644294,-200.0,0.00022044,2]
[349368881,1737139644317,-500.0,0.00022085,2]
[349368882,1737139644341,-250.0,0.00022101,2]
[349368883,1737139644364,-177.33,0.0002214,2]
[349368884,1737139644389,-250.0,0.0002214,2]
[349368885,1737139644414,-300.0,0.00022148,2]
[349368886,1737139644438,-167.92,0.00022149,2]
[349368887,1737139644463,-826.08765796,0.00022166,2]
[349368899,1737139832229,-1573.28574988,0.00021987,2]
[349368900,1737139832239,-416.63,0.00022074,2]
[349368901,1737139832249,-252.88,0.00022078,2]
[349368902,1737139832259,-165.44,0.00022087,2]
[349368903,1737139832270,-2742.63,0.0002213,2]
[349368904,1737139832280,-173.91234204,0.00022166,2]
[349368905,1737139832290,-466.4,0.00022166,2]
[349368906,1737139832299,-151.0,0.00022192,2]
[349368907,1737139832309,-927.56,0.00022257,2]
[349368908,1737139832320,-226.0,0.00022849,2]
[349368909,1737139832330,-721.91627446,0.0002297,2]
[349368910,1737139832339,-300.0,0.00022997,2]
[349368911,1737139832349,-2627.7786,0.00022998,2]
[349368912,1737139832365,-252.56703362,0.00022999,2]
[349368913,1737139832379,-618.55896638,0.00022999,2]
[349368914,1737139832389,-20229.19848071,0.00023,2]
[349368915,1737139832400,-2146.34139261,0.00023,2]
[349368916,1737139832415,-5843.11472668,0.00023,2]
[349368917,1737139832425,-151.0,0.00023014,2]
[349368918,1737139832437,-992.91,0.00023014,2]
[349368919,1737139832447,-150.0,0.00023051,2]
[349368920,1737139832457,-6541.15094014,0.00023052,2]
[349368921,1737139832467,-500.0,0.00023073,2]
[349368922,1737139832477,-500.0,0.00023073,2]
[349368923,1737139832489,-500.0,0.00023098,2]
[349368924,1737139832498,-500.0,0.00023098,2]
[349368925,1737139832507,-500.0,0.00023098,2]
[349368926,1737139832521,-500.0,0.00023098,2]
[349368927,1737139832534,-500.0,0.00023098,2]
[349368928,1737139832545,-500.0,0.00023098,2]
[349368929,1737139832554,-500.0,0.00023098,2]
[349368930,1737139832563,-500.0,0.00023098,2]
[349368931,1737139832573,-500.0,0.00023098,2]
[349368932,1737139832582,-500.0,0.00023098,2]
[349368933,1737139832592,-500.0,0.00023098,2]
[349368934,1737139832601,-500.0,0.00023098,2]
[349368935,1737139832610,-500.0,0.00023098,2]
[349368936,1737139832620,-622.45346948,0.00023098,2]
[349368937,1737139832629,-500.0,0.00023098,2]
[349368938,1737139832639,-500.0,0.00023098,2]
[349368939,1737139832649,-500.0,0.00023098,2]
[349368940,1737139832658,-500.0,0.00023098,2]
[349368942,1737139832668,-500.0,0.00023098,2]
[349368944,1737139832677,-500.0,0.00023098,2]
[349368946,1737139832687,-645.13,0.00023098,2]
[349368947,1737139832696,-500.0,0.00023098,2]
[349368949,1737139832706,-160.73,0.00023098,2]
[349368951,1737139832715,-500.0,0.00023098,2]
[349368953,1737139832724,-469.19382604,0.00023098,2]
[349368954,1737139832734,-500.0,0.00023098,2]
[349368956,1737139832743,-328.30539019,0.00023098,2]
[349368958,1737139832753,-500.0,0.00023098,2]
[349368959,1737139832763,-500.0,0.00023098,2]
[349368960,1737139832773,-500.0,0.00023098,2]
[349368961,1737139832783,-156.35,0.00023098,2]
[349368962,1737139832793,-500.0,0.00023098,2]
[349368963,1737139832801,-500.0,0.00023098,2]
[349368964,1737139832811,-500.0,0.00023098,2]
[349368965,1737139832820,-500.0,0.00023098,2]
[349368966,1737139832830,-500.0,0.00023098,2]
[349368967,1737139832841,-550.25,0.00023098,2]
[349368968,1737139832850,-500.0,0.00023098,2]
[349368969,1737139832860,-500.0,0.00023098,2]
[349368970,1737139832869,-500.0,0.00023098,2]
[349368971,1737139832878,-504.64116049,0.00023098,2]
[349368972,1737139832887,-500.0,0.00023098,2]
[349368973,1737139832897,-500.0,0.00023098,2]
[349368974,1737139832907,-500.0,0.00023098,2]
[349368975,1737139832918,-500.0,0.00023098,2]
[349368976,1737139832929,-500.0,0.00023098,2]
[349368977,1737139832938,-521.70258954,0.00023098,2]
[349368978,1737139832948,-500.0,0.00023098,2]
[349368979,1737139832957,-500.0,0.00023098,2]
[349368981,1737139832966,-500.0,0.00023098,2]
[349368982,1737139832976,-500.0,0.00023098,2]
[349368985,1737139832985,-500.0,0.00023098,2]
[349368987,1737139832994,-500.0,0.00023098,2]
[349368990,1737139833004,-500.0,0.00023098,2]
[349368991,1737139833013,-500.0,0.00023098,2]
[349368994,1737139833023,-172.12522892,0.00023098,2]
[349368995,1737139833032,-500.0,0.00023098,2]
[349368997,1737139833041,-500.0,0.00023098,2]
[349369000,1737139833052,-500.0,0.00023098,2]
[349369002,1737139833062,-500.0,0.00023098,2]
[349369005,1737139833072,-500.0,0.00023098,2]
[349369007,1737139833081,-604.09,0.00023098,2]
[349369009,1737139833092,-500.0,0.00023098,2]
[349369010,1737139833102,-500.0,0.00023098,2]
[349369011,1737139833111,-500.0,0.00023098,2]
[349369012,1737139833121,-500.0,0.00023098,2]
[349369013,1737139833131,-648.15,0.00023098,2]
[349369014,1737139833140,-500.0,0.00023098,2]
[349369015,1737139833150,-500.0,0.00023098,2]
[349369016,1737139833160,-500.0,0.00023098,2]
[349369017,1737139833169,-554.04,0.00023098,2]
[349369018,1737139833179,-500.0,0.00023098,2]
[349369019,1737139833188,-500.0,0.00023098,2]
[349369020,1737139833198,-500.0,0.00023098,2]
[349369021,1737139833208,-500.0,0.00023098,2]
[349369022,1737139833217,-500.0,0.00023098,2]
[349369023,1737139833230,-500.0,0.00023098,2]
[349369024,1737139833240,-500.0,0.00023098,2]
[349369025,1737139833250,-500.0,0.00023098,2]
[349369026,1737139833262,-500.0,0.00023098,2]
[349369027,1737139833273,-500.0,0.00023098,2]
[349369028,1737139833282,-500.0,0.00023098,2]
[349369029,1737139833292,-500.0,0.00023098,2]
[349369030,1737139833302,-500.0,0.00023098,2]
[349369031,1737139833318,-500.0,0.00023098,2]
[349369032,1737139833327,-500.0,0.00023098,2]
[349369033,1737139833337,-500.0,0.00023098,2]
[349369034,1737139833346,-500.0,0.00023098,2]
[349369035,1737139833356,-500.0,0.00023098,2]
[349369036,1737139833365,-500.0,0.00023098,2]
[349369037,1737139833375,-500.0,0.00023098,2]
[349369038,1737139833384,-500.0,0.00023098,2]
[349369039,1737139833394,-500.0,0.00023098,2]
[349369040,1737139833403,-500.0,0.00023098,2]
[349369041,1737139833412,-500.0,0.00023098,2]
[349369042,1737139833422,-500.0,0.00023098,2]
[349369043,1737139833431,-500.0,0.00023098,2]
[349369044,1737139833441,-438.75,0.00023098,2]
[349369045,1737139833450,-500.0,0.00023098,2]
[349369046,1737139833460,-500.0,0.00023098,2]
[349369047,1737139833468,-500.0,0.00023098,2]
[349369048,1737139833478,-500.0,0.00023098,2]
[349369049,1737139833487,-500.0,0.00023098,2]
[349369050,1737139833497,-500.0,0.00023098,2]
[349369051,1737139833506,-500.0,0.00023098,2]
[349369052,1737139833515,-500.0,0.00023098,2]
[349369053,1737139833525,-500.0,0.00023098,2]
[349369054,1737139833534,-500.0,0.00023098,2]
[349369055,1737139833544,-719.04,0.00023098,2]
[349369056,1737139833557,-500.0,0.00023098,2]
[349369057,1737139833569,-500.0,0.00023098,2]
[349369058,1737139833579,-500.0,0.00023098,2]
[349369059,1737139833589,-500.0,0.00023098,2]
[349369060,1737139833599,-500.0,0.00023098,2]
[349369061,1737139833609,-500.0,0.00023098,2]
[349369062,1737139833618,-500.0,0.00023098,2]
[349369063,1737139833628,-417.39452726,0.00023098,2]
[349369064,1737139833637,-500.0,0.00023098,2]
[349369065,1737139833647,-500.0,0.00023098,2]
[349369066,1737139833656,-500.0,0.00023098,2]
[349369067,1737139833665,-174.16,0.00023098,2]
[349369068,1737139833674,-500.0,0.00023098,2]
[349369069,1737139833684,-500.0,0.00023098,2]
[349369070,1737139833693,-216.73241197,0.00023098,2]
[349369071,1737139833703,-4217.5033,0.00023098,2]
[349369072,1737139833712,-500.0,0.00023099,2]
[349369073,1737139833722,-500.0,0.00023099,2]
[349369074,1737139833731,-1203.90445348,0.00023099,2]
[349369075,1737139833834,-961.67907138,0.00023099,2]
[349369076,1737139833846,-2309.24872492,0.00023099,2]
[349369077,1737139833855,-1405.27983764,0.00023099,2]
[349369078,1737139833865,-4474.8322497,0.00023099,2]
[349369079,1737139833875,-4474.8322497,0.00023099,2]
[349369080,1737139833884,-4474.8322497,0.00023099,2]
[349369081,1737139833894,-4474.8322497,0.00023099,2]
[349369082,1737139833903,-4474.8322497,0.000231,2]
[349369083,1737139833913,-4474.8322497,0.000231,2]
[349369084,1737139833923,-4474.8322497,0.000231,2]
[349369085,1737139833933,-4474.8322497,0.000231,2]
[349369086,1737139833942,-4474.8322497,0.000231,2]
[349369087,1737139833952,-1000.0,0.0002317,2]
[349369088,1737139833962,-547.07509676,0.00023176,2]
[349369089,1737139833972,-500.0,0.00023176,2]
[349369090,1737139833982,-504.29210305,0.00023176,2]
[349369091,1737139833991,-500.0,0.00023176,2]
[349369092,1737139834001,-124.65433575,0.00023176,2]
[349369096,1737139838085,-375.34566425,0.00023176,2]
[349369097,1737139838095,-500.0,0.00023176,2]
[349369098,1737139838105,-500.0,0.00023176,2]
[349369099,1737139838114,-500.0,0.00023176,2]
[349369100,1737139838124,-500.0,0.00023176,2]
[349369101,1737139838133,-500.0,0.00023176,2]
[349369102,1737139838142,-500.0,0.00023176,2]
[349369103,1737139838152,-428.70750996,0.00023176,2]
[349369104,1737139838161,-500.0,0.00023176,2]
[349369105,1737139838171,-389.62,0.00023176,2]
[349369106,1737139838180,-500.0,0.00023176,2]
[349369107,1737139838190,-500.0,0.00023176,2]
[349369108,1737139838199,-418.87,0.00023176,2]
[349369109,1737139838208,-500.0,0.00023176,2]
[349369110,1737139838217,-500.0,0.00023176,2]
[349369111,1737139838229,-500.0,0.00023176,2]
[349369112,1737139838238,-279.93,0.00023176,2]
[349369113,1737139838248,-500.0,0.00023176,2]
[349369114,1737139838258,-500.0,0.00023176,2]
[349369115,1737139838269,-500.0,0.00023176,2]
[349369116,1737139838279,-500.0,0.00023176,2]
[349369117,1737139838289,-500.0,0.00023176,2]
[349369118,1737139838298,-500.0,0.00023176,2]
[349369119,1737139838308,-500.0,0.00023176,2]
[349369120,1737139838319,-500.0,0.00023176,2]
[349369121,1737139838328,-253.35853558,0.00023176,2]
[349369122,1737139838338,-500.0,0.00023176,2]
[349369123,1737139838348,-500.0,0.00023176,2]
[349369124,1737139838358,-500.0,0.00023176,2]
[349369125,1737139838367,-621.39,0.00023176,2]
[349369126,1737139838377,-500.0,0.00023176,2]
[349369127,1737139838386,-500.0,0.00023176,2]
[349369128,1737139838397,-500.0,0.00023176,2]
[349369129,1737139838406,-719.04,0.00023176,2]
[349369130,1737139838415,-500.0,0.00023176,2]
[349369131,1737139838424,-500.0,0.00023176,2]
[349369132,1737139838433,-500.0,0.00023176,2]
[349369133,1737139838442,-500.0,0.00023176,2]
[349369134,1737139838451,-165.44,0.00023177,2]
[349369135,1737139838461,-500.0,0.00023196,2]
[349369137,1737139838470,-459.04,0.00023196,2]
[349369138,1737139838480,-500.0,0.00023196,2]
[349369140,1737139838489,-500.0,0.00023196,2]
[349369142,1737139838499,-500.0,0.00023196,2]
[349369144,1737139838508,-500.0,0.00023196,2]
[349369145,1737139838517,-500.0,0.00023196,2]
[349369147,1737139838527,-500.0,0.00023196,2]
[349369149,1737139838536,-500.0,0.00023196,2]
[349369150,1737139838545,-544.01,0.00023196,2]
[349369151,1737139838555,-500.0,0.00023196,2]
[349369152,1737139838565,-500.0,0.00023196,2]
[349369153,1737139838574,-500.0,0.00023197,2]
[349369154,1737139838584,-500.0,0.00023197,2]
[349369155,1737139838593,-500.0,0.00023197,2]
[349369156,1737139838604,-550.17754865,0.00023197,2]
[349369157,1737139838614,-500.0,0.00023197,2]
[349369158,1737139838625,-500.0,0.00023197,2]
[349369160,1737139838634,-409.92520004,0.00023197,2]
[349369162,1737139838643,-548.1,0.00023197,2]
[349369164,1737139838653,-514.18,0.00023197,2]
[349369166,1737139838663,-500.0,0.00023197,2]
[349369168,1737139838672,-500.0,0.00023197,2]
[349369170,1737139838681,-440.9,0.00023197,2]
[349369172,1737139838691,-500.0,0.00023197,2]
[349369175,1737139838700,-500.0,0.00023197,2]
[349369178,1737139838709,-500.0,0.00023197,2]
[349369181,1737139838717,-500.0,0.00023197,2]
[349369184,1737139838727,-500.0,0.00023197,2]
[349369187,1737139838736,-500.0,0.00023197,2]
[349369190,1737139838745,-500.0,0.00023197,2]
[349369193,1737139838755,-500.0,0.00023197,2]